fUSD/lending_fUSD_20240712
["ID","MTS","AMOUNT","RATE_DAILY","PERIOD"]
[331760292,1720754229856,500.0,0.0001126,2]
[331760293,1720754321487,1000.0,0.000165,30]
[331760295,1720754405392,500.0,6.636e-05,2]
[331760296,1720754407109,500.0,8.28e-05,2]
[331760297,1720754408726,500.0,9.924e-05,2]
[331760299,1720754573261,688.20781529,0.00011199,2]
[331760301,1720754649319,440.17887478,0.00011199,2]
[331760305,1720754856240,302.83,0.00010486,2]
[331760307,1720754967600,760.08536441,0.00011199,2]
[331760337,1720755032221,-500.0,0.00011568,2]
[331760338,1720755032231,-3910.50407077,0.000117,2]
[331760339,1720755032242,-535.511,0.000117,2]
[331760340,1720755032254,-158.35155992,0.000117,2]
[331760341,1720755032264,-341.70599015,0.000118,2]
[331760342,1720755032273,-300.0,0.00012359,2]
[331760343,1720755032282,-6095.99769304,0.0001236,2]
[331760344,1720755032293,-2326.20218352,0.0001236,2]
[331760345,1720755032337,-1532.29478032,0.0001236,2]
[331760346,1720755032350,-280.83854349,0.0001236,2]
[331760347,1720755032361,-691.39146768,0.0001236,2]
[331760348,1720755032372,-479.84771151,0.0001236,2]
[331760349,1720755032383,-1524.10623217,0.0001236,2]
[331760350,1720755032394,-510.86846701,0.0001236,2]
[331760351,1720755032405,-5801.46363943,0.0001236,2]
[331760352,1720755032416,-1116.71928183,0.0001236,2]
[331760353,1720755032426,-390.92,0.00012387,2]
[331760354,1720755032435,-500.0,0.0001243,2]
[331760355,1720755032445,-136.81796685,0.00012437,2]
[331760356,1720755032457,-863.18203315,0.00012437,2]
[331760357,1720755032466,-178.97,0.00012457,2]
[331760358,1720755032476,-37.67694563,0.00012474,2]
[331760359,1720755032488,-212.32305437,0.00012474,2]
[331760360,1720755032499,-169.77,0.00012487,2]
[331760361,1720755032510,-250.0,0.00012508,2]
[331760362,1720755032520,-150.99,0.00012508,2]
[331760363,1720755032530,-499.99,0.00012508,2]
[331760364,1720755032541,-500.0,0.00012529,2]
[331760365,1720755032551,-1663.69,0.00012529,2]
[331760366,1720755032560,-167.65,0.00012529,2]
[331760367,1720755032569,-499.99,0.00012529,2]
[331760368,1720755032578,-300.13,0.00012591,2]
[331760369,1720755032588,-757.2113,0.00012683,2]
[331760370,1720755032597,-167.78251454,0.00012739,2]
[331760371,1720755032607,-826.73,0.00012739,2]
[331760372,1720755032616,-302.83,0.0001275,2]
[331760373,1720755032626,-65.38651299,0.00012855,2]
[331760374,1720755032679,-118.59348701,0.00012855,2]
[331760375,1720755032690,-360.00047632,0.00012981,2]
[331760376,1720755032703,-2953.12331578,0.00012981,2]
[331760377,1720755032713,-1250.0,0.00013,2]
[331760378,1720755032723,-500.0,0.000131,4]
[331760379,1720755032732,-1100.0,0.000132,4]
[331760380,1720755032742,-2244.42090175,0.00013208,2]
[331760381,1720755032755,-746.56164777,0.00013208,2]
[331760382,1720755032766,-830.08689098,0.00013208,2]
[331760383,1720755032779,-36.08028492,0.00013208,2]
[331760384,1720755032788,-10000.0,0.00013208,2]
[331760385,1720755032798,-500.0,0.00013212,2]
[331760386,1720755032808,-1700.0,0.000133,4]
[331760387,1720755032819,-177.367034,0.00013331,2]
[331760388,1720755032829,-803.060023,0.00013331,2]
[331760389,1720755032838,-608.931844,0.00013331,2]
[331760390,1720755032850,-1237.843277,0.00013331,2]
[331760391,1720755032862,-175.341085,0.00013331,2]
[331760392,1720755032872,-1273.497508,0.00013331,2]
[331760393,1720755032883,-1528.266515,0.00013331,2]
[331760394,1720755032894,-177.367033,0.00013331,2]
[331760395,1720755032904,-175.341085,0.00013331,2]
[331760396,1720755032916,-1847.315336,0.00013331,2]
[331760397,1720755032926,-2300.0,0.000134,4]
[331760398,1720755032937,-803.060023,0.00013498,2]
[331760399,1720755032947,-608.931844,0.00013498,2]
[331760400,1720755032957,-1237.843277,0.00013498,2]
[331760401,1720755032967,-1273.497508,0.00013498,2]
[331760402,1720755032976,-1528.266515,0.00013498,2]
[331760403,1720755032986,-1847.315336,0.00013498,2]
[331760404,1720755032996,-2900.0,0.000135,4]
[331760405,1720755033007,-420.0,0.00013562,2]
[331760406,1720755033016,-500.0,0.000136,4]
[331760407,1720755033026,-803.060023,0.00013665,2]
[331760408,1720755033035,-608.931844,0.00013665,2]
[331760409,1720755033044,-1237.843277,0.00013665,2]
[331760410,1720755033053,-1273.497508,0.00013665,2]
[331760411,1720755033063,-1528.266515,0.00013665,2]
[331760412,1720755033072,-1847.315336,0.00013665,2]
[331760413,1720755033081,-232.06592917,0.0001369,2]
[331760414,1720755033090,-873.70160892,0.0001369,2]
[331760415,1720755033099,-447.8963,0.0001369,2]
[331760416,1720755033109,-30299.3178,0.0001369,2]
[331760417,1720755033118,-304.9781,0.0001369,2]
[331760418,1720755033127,-10472.4347,0.00013691,2]
[331760419,1720755033136,-352.0383495,0.00013691,2]
[331760420,1720755033145,-203.97728597,0.00013691,2]
[331760421,1720755033155,-607.51,0.00013699,2]
[331760422,1720755033165,-1500.0,0.00013699,5]
[331760423,1720755033177,-500.0,0.000137,5]
[331760424,1720755033190,-5000.0,0.00013719,2]
[331760425,1720755033200,-873.70160891,0.0001372,2]
[331760426,1720755033210,-352.03834946,0.00013743,2]
[331760427,1720755033220,-203.97728596,0.00013745,2]
[331760428,1720755033229,-545.4,0.00013749,2]
[331760429,1720755033238,-873.70160891,0.0001375,2]
[331760430,1720755033247,-151.43,0.00013779,3]
[331760431,1720755033258,-873.70160891,0.0001378,2]
[331760432,1720755033268,-500.0,0.00013789,2]
[331760433,1720755033277,-887.61,0.00013789,2]
[331760434,1720755033287,-1065.5,0.00013789,2]
[331760435,1720755033296,-500.0,0.00013789,2]
[331760436,1720755033306,-518.53,0.00013789,2]
[331760437,1720755033315,-6648.52,0.00013789,2]
[331760438,1720755033324,-1156.78,0.00013789,2]
[331760439,1720755033333,-500.0,0.00013789,2]
[331760440,1720755033343,-500.0,0.00013789,2]
[331760441,1720755033352,-500.0,0.00013789,2]
[331760442,1720755033362,-596.81,0.00013789,2]
[331760443,1720755033371,-500.0,0.00013789,2]
[331760444,1720755033380,-500.0,0.00013789,2]
[331760445,1720755033389,-586.99,0.00013789,2]
[331760446,1720755033398,-500.0,0.00013789,2]
[331760447,1720755033407,-500.0,0.00013789,2]
[331760448,1720755033417,-500.0,0.00013789,2]
[331760449,1720755033426,-500.0,0.00013789,2]
[331760450,1720755033435,-500.0,0.00013789,2]
[331760451,1720755033445,-500.0,0.00013789,2]
[331760452,1720755033455,-86.16706888,0.00013789,2]
[331760453,1720755033468,-413.83293112,0.00013789,2]
[331760454,1720755033477,-500.0,0.00013789,2]
[331760455,1720755033487,-795.1,0.00013789,2]
[331760456,1720755033496,-726.81,0.00013789,2]
[331760457,1720755033505,-500.0,0.00013789,2]
[331760458,1720755033514,-917.22,0.00013789,2]
[331760459,1720755033524,-500.0,0.00013789,2]
[331760460,1720755033533,-500.0,0.00013789,2]
[331760461,1720755033542,-16.9091292,0.00013789,2]
[331760462,1720755033554,-483.0908708,0.00013789,2]
[331760463,1720755033563,-500.0,0.00013789,2]
[331760464,1720755033573,-113.64689416,0.00013789,2]
[331760465,1720755033584,-737.16310584,0.00013789,2]
[331760466,1720755033594,-500.87689416,0.00013789,2]
[331760467,1720755033605,-410.27310584,0.00013789,2]
[331760468,1720755033615,-89.72689416,0.00013789,2]
[331760473,1720755038015,-758.3337372,0.00013736,2]
[331760478,1720755038026,-986.78086981,0.00013736,2]
[331760482,1720755038211,-504.83275715,0.00013736,2]
[331760483,1720755038224,-1053.71391038,0.00013736,2]
[331760484,1720755038234,-410.27310584,0.00013789,2]
[331760485,1720755038244,-654.85,0.00013789,2]
[331760486,1720755038253,-756.77,0.00013789,2]
[331760487,1720755038264,-1033.37,0.00013789,2]
[331760488,1720755038274,-701.95,0.00013789,2]
[331760489,1720755038283,-500.0,0.00013789,2]
[331760490,1720755038292,-500.0,0.00013789,2]
[331760491,1720755038301,-2077.64,0.00013789,2]
[331760492,1720755038311,-637.8,0.00013789,2]
[331760493,1720755038321,-1453.74,0.00013789,2]
[331760494,1720755038330,-1955.83,0.00013789,2]
[331760495,1720755038340,-500.0,0.00013789,2]
[331760496,1720755038352,-500.0,0.00013789,2]
[331760497,1720755038361,-1194.33,0.00013789,2]
[331760498,1720755038371,-594.54,0.00013789,2]
[331760499,1720755038381,-500.0,0.00013789,2]
[331760500,1720755038390,-834.73298378,0.00013789,2]
[331760501,1720755038402,-643.70701622,0.00013789,2]
[331760502,1720755038412,-500.0,0.00013789,2]
[331760503,1720755038422,-500.0,0.00013789,2]
[331760504,1720755038432,-173.26653391,0.00013789,2]
[331760505,1720755038444,-326.73346609,0.00013789,2]
[331760506,1720755038453,-246.0563549,0.00013789,2]
[331760507,1720755038464,-490.03837367,0.00013789,2]
[331760508,1720755038475,-531.18527143,0.00013789,2]
[331760509,1720755038485,-500.0,0.00013789,2]
[331760510,1720755038495,-376.28035395,0.00013789,2]
[331760511,1720755038506,-123.71964605,0.00013789,2]
[331760512,1720755038516,-500.0,0.00013789,2]
[331760513,1720755038526,-500.0,0.00013789,2]
[331760514,1720755038536,-500.0,0.00013789,2]
[331760515,1720755038547,-398.86322903,0.00013789,2]
[331760516,1720755038557,-529.75,0.00013789,2]
[331760517,1720755038566,-500.0,0.00013789,2]
[331760518,1720755038576,-500.0,0.00013789,2]
[331760519,1720755038586,-500.0,0.00013789,2]
[331760521,1720755038596,-335.46604488,0.00013789,2]
[331760523,1720755038605,-500.0,0.00013789,2]
[331760524,1720755038614,-500.0,0.00013789,2]
[331760526,1720755038624,-2638.81,0.00013789,2]
[331760528,1720755038633,-500.0,0.00013789,2]
[331760530,1720755038642,-500.0,0.00013789,2]
[331760531,1720755038651,-500.0,0.00013789,2]
[331760533,1720755038661,-500.0,0.00013789,2]
[331760535,1720755038670,-500.0,0.00013789,2]
[331760536,1720755038680,-1322.72,0.00013789,2]
[331760537,1720755038689,-500.0,0.00013789,2]
[331760538,1720755038698,-500.0,0.00013789,2]
[331760539,1720755038707,-500.0,0.00013789,2]
[331760540,1720755038717,-500.0,0.00013789,2]
[331760541,1720755038727,-500.0,0.00013789,2]
[331760542,1720755038736,-500.0,0.00013789,2]
[331760543,1720755038746,-500.0,0.00013789,2]
[331760544,1720755038756,-500.0,0.00013789,2]
[331760545,1720755038765,-3420.08,0.00013789,2]
[331760546,1720755038774,-500.0,0.0001379,2]
[331760547,1720755038784,-504.73,0.0001379,2]
[331760548,1720755038795,-876.79,0.0001379,2]
[331760549,1720755038805,-500.0,0.0001379,2]
[331760550,1720755038814,-500.0,0.0001379,2]
[331760551,1720755038824,-500.0,0.0001379,2]
[331760552,1720755038833,-500.0,0.0001379,2]
[331760553,1720755038842,-500.0,0.0001379,2]
[331760554,1720755038852,-500.0,0.0001379,2]
[331760555,1720755038861,-500.0,0.0001379,2]
[331760556,1720755038871,-500.0,0.0001379,2]
[331760557,1720755038880,-500.0,0.0001379,2]
[331760558,1720755038890,-500.0,0.0001379,2]
[331760559,1720755038899,-626.16,0.0001379,2]
[331760560,1720755038908,-500.0,0.0001379,2]
[331760561,1720755038918,-500.0,0.0001379,2]
[331760562,1720755038927,-1021.3,0.0001379,2]
[331760563,1720755038937,-758.96,0.0001379,2]
[331760564,1720755038947,-500.0,0.0001379,2]
[331760565,1720755038957,-500.0,0.0001379,2]
[331760566,1720755038967,-500.0,0.0001379,2]
[331760567,1720755038976,-500.0,0.0001379,2]
[331760568,1720755038986,-500.0,0.0001379,2]
[331760569,1720755038995,-500.0,0.0001379,2]
[331760570,1720755039004,-939.45,0.0001379,2]
[331760571,1720755039014,-500.0,0.0001379,2]
[331760572,1720755039023,-641.54879401,0.0001379,2]
[331760573,1720755039032,-629.18,0.0001379,2]
[331760574,1720755039041,-500.0,0.0001379,2]
[331760575,1720755039051,-733.39,0.0001379,2]
[331760576,1720755039059,-500.0,0.0001379,2]
[331760577,1720755039070,-1420.82,0.0001379,2]
[331760578,1720755039079,-643.89,0.0001379,2]
[331760579,1720755039089,-500.0,0.0001379,2]
[331760580,1720755039098,-500.0,0.0001379,2]
[331760581,1720755039108,-500.0,0.0001379,2]
[331760582,1720755039118,-1000.0,0.0001379,2]
[331760583,1720755039127,-500.0,0.0001379,2]
[331760584,1720755039136,-500.0,0.0001379,2]
[331760585,1720755039145,-1535.75,0.0001379,2]
[331760586,1720755039155,-500.0,0.0001379,2]
[331760587,1720755039164,-500.0,0.0001379,2]
[331760588,1720755039174,-500.0,0.0001379,2]
[331760589,1720755039186,-500.0,0.0001379,2]
[331760590,1720755039196,-629.04,0.0001379,2]
[331760591,1720755039205,-500.0,0.0001379,2]
[331760592,1720755039214,-500.0,0.0001379,2]
[331760593,1720755039228,-500.0,0.0001379,2]
[331760594,1720755039238,-769.06,0.0001379,2]
[331760595,1720755039247,-500.0,0.0001379,2]
[331760596,1720755039257,-500.0,0.0001379,2]
[331760597,1720755039268,-295.45569579,0.0001379,2]
[331760598,1720755039277,-500.0,0.0001379,2]
[331760599,1720755039288,-500.0,0.0001379,2]
[331760600,1720755039298,-500.0,0.0001379,2]
[331760601,1720755039308,-885.42,0.0001379,2]
[331760602,1720755039317,-842.38,0.0001379,2]
[331760603,1720755039326,-500.0,0.0001379,2]
[331760604,1720755039335,-500.0,0.0001379,2]
[331760605,1720755039345,-571.48,0.0001379,2]
[331760606,1720755039355,-500.0,0.0001379,2]
[331760607,1720755039364,-1710.8,0.0001379,2]
[331760608,1720755039374,-500.0,0.0001379,2]
[331760609,1720755039384,-500.0,0.0001379,2]
[331760610,1720755039394,-500.0,0.0001379,2]
[331760611,1720755039404,-605.77,0.0001379,2]
[331760612,1720755039413,-500.0,0.0001379,2]
[331760613,1720755039423,-1281.49,0.0001379,2]
[331760614,1720755039432,-500.0,0.0001379,2]
[331760615,1720755039442,-500.0,0.0001379,2]
[331760616,1720755039451,-500.0,0.0001379,2]
[331760617,1720755039460,-500.0,0.0001379,2]
[331760618,1720755039471,-500.0,0.0001379,2]
[331760619,1720755039480,-500.0,0.0001379,2]
[331760620,1720755039491,-500.0,0.0001379,2]
[331760621,1720755039500,-513.87,0.0001379,2]
[331760622,1720755039510,-500.0,0.0001379,2]
[331760623,1720755039519,-500.0,0.0001379,2]
[331760624,1720755039529,-500.0,0.0001379,2]
[331760625,1720755039538,-500.0,0.0001379,2]
[331760626,1720755039548,-500.0,0.0001379,2]
[331760627,1720755039558,-705.38,0.0001379,2]
[331760628,1720755039567,-500.0,0.0001379,2]
[331760629,1720755039577,-500.0,0.0001379,2]
[331760630,1720755039587,-631.38,0.0001379,2]
[331760631,1720755039803,-500.0,0.0001379,2]
[331760632,1720755039813,-1168.67,0.0001379,2]
[331760633,1720755039822,-959.77,0.0001379,2]
[331760634,1720755039832,-500.0,0.0001379,2]
[331760635,1720755039841,-1535.62,0.0001379,2]
[331760636,1720755039850,-756.35,0.0001379,2]
[331760637,1720755039859,-272.67127521,0.0001379,2]
[331760638,1720755039870,-500.0,0.0001379,2]
[331760639,1720755039879,-640.71098541,0.0001379,2]
[331760640,1720755039888,-1288.12,0.0001379,2]
[331760641,1720755039897,-500.0,0.0001379,2]
[331760643,1720755039909,-500.0,0.0001379,2]
[331760644,1720755039919,-500.0,0.0001379,2]
[331760645,1720755039930,-500.0,0.0001379,2]
[331760646,1720755039942,-500.0,0.0001379,2]
[331760647,1720755039954,-254.02196992,0.0001379,2]
[331760648,1720755039964,-500.0,0.0001379,2]
[331760649,1720755039974,-500.0,0.0001379,2]
[331760650,1720755039983,-500.0,0.0001379,2]
[331760651,1720755039992,-1013.73,0.0001379,2]
[331760652,1720755040003,-500.0,0.0001379,2]
[331760653,1720755040014,-500.0,0.0001379,2]
[331760654,1720755040023,-500.0,0.0001379,2]
[331760655,1720755040034,-500.0,0.0001379,2]
[331760656,1720755040043,-500.0,0.0001379,2]
[331760657,1720755040053,-500.0,0.0001379,2]
[331760658,1720755040062,-946.68,0.0001379,2]
[331760659,1720755040073,-653.64,0.0001379,2]
[331760660,1720755040083,-500.0,0.0001379,2]
[331760661,1720755040093,-500.0,0.0001379,2]
[331760662,1720755040103,-500.0,0.0001379,2]
[331760663,1720755040113,-500.0,0.0001379,2]
[331760664,1720755040124,-500.0,0.0001379,2]
[331760665,1720755040133,-500.0,0.0001379,2]
[331760667,1720755040143,-1062.53,0.0001379,2]
[331760668,1720755040153,-901.49,0.0001379,2]
[331760669,1720755040162,-500.0,0.0001379,2]
[331760671,1720755040171,-1837.49,0.0001379,2]
[331760672,1720755040186,-783.22,0.0001379,2]
[331760673,1720755040196,-500.0,0.0001379,2]
[331760674,1720755040206,-500.0,0.0001379,2]
[331760675,1720755040217,-500.0,0.0001379,2]
[331760676,1720755040226,-948.74,0.0001379,2]
[331760677,1720755040236,-500.0,0.0001379,2]
[331760678,1720755040246,-500.0,0.0001379,2]
[331760679,1720755040256,-752.71,0.0001379,2]
[331760680,1720755040266,-500.0,0.0001379,2]
[331760681,1720755040275,-500.0,0.0001379,2]
[331760682,1720755040285,-500.0,0.0001379,2]
[331760683,1720755040295,-500.0,0.0001379,2]
[331760684,1720755040304,-500.0,0.0001379,2]
[331760685,1720755040314,-500.0,0.0001379,2]
[331760686,1720755040323,-941.72,0.0001379,2]
[331760687,1720755040333,-500.0,0.0001379,2]
[331760688,1720755040342,-500.0,0.0001379,2]
[331760689,1720755040352,-500.0,0.0001379,2]
[331760690,1720755040361,-556.12,0.0001379,2]
[331760691,1720755040371,-809.89,0.0001379,2]
[331760692,1720755040381,-500.0,0.0001379,2]
[331760693,1720755040391,-500.0,0.0001379,2]
[331760694,1720755040401,-1253.15,0.0001379,2]
[331760695,1720755040411,-500.0,0.0001379,2]
[331760696,1720755040420,-500.0,0.0001379,2]
[331760697,1720755040431,-500.0,0.0001379,2]
[331760698,1720755040440,-500.0,0.0001379,2]
[331760699,1720755040450,-500.0,0.0001379,2]
[331760700,1720755040461,-791.65,0.0001379,2]
[331760701,1720755040472,-500.0,0.0001379,2]
[331760702,1720755040481,-500.0,0.0001379,2]
[331760703,1720755040491,-500.0,0.0001379,2]
[331760704,1720755040500,-1936.1,0.0001379,2]
[331760705,1720755040511,-500.0,0.0001379,2]
[331760706,1720755040521,-500.0,0.0001379,2]
[331760707,1720755040530,-500.0,0.0001379,2]
[331760708,1720755040540,-500.0,0.0001379,2]
[331760709,1720755040549,-814.48,0.0001379,2]
[331760710,1720755040558,-898.13,0.0001379,2]
[331760711,1720755040567,-654.05,0.0001379,2]
[331760712,1720755040577,-500.0,0.0001379,2]
[331760713,1720755040586,-1338.31,0.0001379,2]
[331760714,1720755040595,-500.0,0.0001379,2]
[331760715,1720755040605,-500.0,0.0001379,2]
[331760716,1720755040614,-500.0,0.0001379,2]
[331760717,1720755040623,-196.8924893,0.0001379,2]
[331760718,1720755040634,-500.0,0.0001379,2]
[331760719,1720755040644,-500.0,0.0001379,2]
[331760720,1720755040654,-500.0,0.0001379,2]
[331760721,1720755040663,-500.0,0.0001379,2]
[331760722,1720755040674,-500.0,0.0001379,2]
[331760723,1720755040684,-500.0,0.0001379,2]
[331760724,1720755040695,-719.82,0.0001379,2]
[331760725,1720755040706,-500.0,0.0001379,2]
[331760726,1720755040717,-500.0,0.0001379,2]
[331760727,1720755040727,-500.0,0.0001379,2]
[331760728,1720755040736,-500.0,0.0001379,2]
[331760729,1720755040747,-500.0,0.0001379,2]
[331760730,1720755040757,-500.0,0.0001379,2]
[331760731,1720755040767,-500.0,0.0001379,2]
[331760732,1720755040778,-500.0,0.0001379,2]
[331760734,1720755040788,-536.41,0.0001379,2]
[331760736,1720755040798,-500.0,0.0001379,2]
[331760738,1720755040808,-500.0,0.0001379,2]
[331760741,1720755040819,-500.0,0.0001379,2]
[331760742,1720755040829,-500.0,0.0001379,2]
[331760744,1720755040840,-665.86,0.0001379,2]
[331760747,1720755040850,-702.65,0.0001379,2]
[331760749,1720755040863,-1374.83,0.0001379,2]
[331760751,1720755040872,-427.79073831,0.0001379,2]
[331760753,1720755040882,-612.99,0.0001379,2]
[331760755,1720755040894,-500.0,0.0001379,2]
[331760757,1720755040904,-500.0,0.0001379,2]
[331760759,1720755040915,-500.0,0.0001379,2]
[331760761,1720755040924,-500.0,0.0001379,2]
[331760763,1720755040935,-500.0,0.0001379,2]
[331760765,1720755040945,-500.0,0.0001379,2]
[331760767,1720755040954,-549.03,0.0001379,2]
[331760769,1720755040965,-500.0,0.0001379,2]
[331760771,1720755040974,-500.0,0.0001379,2]
[331760773,1720755040984,-500.0,0.0001379,2]
[331760775,1720755040995,-500.0,0.0001379,2]
[331760777,1720755041005,-500.0,0.0001379,2]
[331760779,1720755041014,-654.23,0.0001379,2]
[331760781,1720755041023,-500.0,0.0001379,2]
[331760783,1720755041032,-500.0,0.0001379,2]
[331760785,1720755041041,-500.0,0.0001379,2]
[331760787,1720755041051,-1466.21,0.0001379,2]
[331760789,1720755041061,-500.0,0.0001379,2]
[331760791,1720755041070,-500.0,0.0001379,2]
[331760793,1720755041079,-500.0,0.0001379,2]
[331760795,1720755041088,-1023.29,0.0001379,2]
[331760797,1720755041097,-500.0,0.0001379,2]
[331760799,1720755041106,-500.0,0.0001379,2]
[331760800,1720755041115,-500.0,0.0001379,2]
[331760802,1720755041124,-500.0,0.0001379,2]
[331760803,1720755041134,-500.0,0.0001379,2]
[331760804,1720755041336,-1110.63,0.0001379,2]
[331760805,1720755041360,-500.0,0.0001379,2]
[331760806,1720755041370,-500.0,0.0001379,2]
[331760807,1720755041379,-500.0,0.0001379,2]
[331760808,1720755041389,-500.0,0.0001379,2]
[331760809,1720755041399,-500.0,0.0001379,2]
[331760810,1720755041408,-2426.46,0.0001379,2]
[331760811,1720755041418,-637.05,0.0001379,2]
[331760812,1720755041427,-500.0,0.0001379,2]
[331760813,1720755041436,-500.0,0.0001379,2]
[331760814,1720755041445,-537.89470917,0.0001379,2]
[331760815,1720755041455,-500.0,0.0001379,2]
[331760816,1720755041465,-500.0,0.0001379,2]
[331760817,1720755041474,-500.0,0.0001379,2]
[331760818,1720755041484,-500.0,0.0001379,2]
[331760819,1720755041493,-500.0,0.0001379,2]
[331760820,1720755041502,-1130.68,0.0001379,2]
[331760821,1720755041511,-500.0,0.0001379,2]
[331760822,1720755041520,-500.0,0.0001379,2]
[331760823,1720755041529,-500.0,0.0001379,2]
[331760824,1720755041539,-704.1,0.0001379,2]
[331760825,1720755041548,-500.0,0.0001379,2]
[331760826,1720755041557,-1223.72,0.0001379,2]
[331760827,1720755041567,-973.68,0.0001379,2]
[331760828,1720755041576,-500.0,0.0001379,2]
[331760829,1720755041586,-1028.39,0.0001379,2]
[331760830,1720755041595,-500.0,0.0001379,2]
[331760831,1720755041604,-562.76,0.0001379,2]
[331760832,1720755041613,-500.0,0.0001379,2]
[331760833,1720755041623,-3388.51,0.0001379,2]
[331760834,1720755041632,-614.57,0.0001379,2]
[331760835,1720755041642,-590.55,0.0001379,2]
[331760836,1720755041651,-500.0,0.0001379,2]
[331760837,1720755041661,-863.37,0.0001379,2]
[331760838,1720755041673,-500.0,0.0001379,2]
[331760839,1720755041682,-1231.54,0.0001379,2]
[331760840,1720755041692,-693.52,0.0001379,2]
[331760841,1720755041701,-500.0,0.0001379,2]
[331760842,1720755041711,-1220.39,0.0001379,2]
[331760843,1720755041722,-700.46,0.0001379,2]
[331760844,1720755041731,-500.0,0.0001379,2]
[331760845,1720755041740,-758.84,0.0001379,2]
[331760846,1720755041750,-1270.41,0.0001379,2]
[331760847,1720755041761,-511.86,0.0001379,2]
[331760848,1720755041771,-500.0,0.0001379,2]
[331760849,1720755041781,-898.66,0.0001379,2]
[331760850,1720755041790,-755.39,0.0001379,2]
[331760851,1720755041799,-500.0,0.0001379,2]
[331760852,1720755041808,-500.0,0.0001379,2]
[331760853,1720755041816,-500.0,0.0001379,2]
[331760854,1720755041826,-500.0,0.0001379,2]
[331760855,1720755041834,-500.0,0.0001379,2]
[331760856,1720755041844,-500.0,0.0001379,2]
[331760857,1720755041853,-500.0,0.0001379,2]
[331760858,1720755041861,-770.69,0.0001379,2]
[331760859,1720755041871,-500.0,0.0001379,2]
[331760860,1720755041881,-500.0,0.0001379,2]
[331760861,1720755041891,-500.0,0.0001379,2]
[331760862,1720755041901,-500.0,0.0001379,2]
[331760863,1720755041911,-1183.61,0.0001379,2]
[331760864,1720755041920,-500.0,0.0001379,2]
[331760865,1720755041930,-500.0,0.0001379,2]
[331760866,1720755041939,-547.76,0.0001379,2]
[331760867,1720755041949,-500.0,0.0001379,2]
[331760868,1720755041960,-500.0,0.0001379,2]
[331760869,1720755041970,-813.38,0.0001379,2]
[331760870,1720755041980,-500.0,0.0001379,2]
[331760871,1720755041989,-500.0,0.0001379,2]
[331760872,1720755041999,-500.0,0.0001379,2]
[331760873,1720755042008,-1624.91,0.0001379,2]
[331760874,1720755042018,-500.0,0.0001379,2]
[331760875,1720755042029,-762.29,0.0001379,2]
[331760876,1720755042038,-680.36,0.0001379,2]
[331760877,1720755042048,-500.0,0.0001379,2]
[331760878,1720755042057,-500.0,0.0001379,2]
[331760879,1720755042066,-500.0,0.0001379,2]
[331760880,1720755042075,-500.0,0.0001379,2]
[331760881,1720755042084,-572.74,0.0001379,2]
[331760882,1720755042093,-500.0,0.0001379,2]
[331760883,1720755042102,-948.19,0.0001379,2]